Cogmind - Beta 14 @@@ ROGUE MODE // 2024.08.07 @ 16:19:05 Player: Phosphorus Result: Destroyed by I3-52D(R) with Subdweller Machine Gun Performance ------------- Evolutions (0) 0 Regions Visited (2) 400 Robots Destroyed (15) 75 Value Destroyed (289) 289 Prototype IDs (11) 220 Alien Tech Used (0) 0 Bonus (-33) -33 TOTAL SCORE: 951 Bonus ------- Friendly Fire -33 Cogmind --------- Core Integrity 0/250 Matter 296/300 Energy 106/125 System Corruption 0% Temperature Cool (0) Movement Rolling (110) Ox2 Location -10/Subcaves Parts ------- > --- POWER (1) -------- Light Ion Engine > --- PROPULSION (2) --- Aluminum Leg Wheel > --- UTILITY (2) ------ Large Storage Unit Seismic Detector > --- WEAPON (2) ------- Subdweller Laser Light Assault Rifle > --- INVENTORY (15) --- Wheel Light Armor Plating Makeshift Light Armor Plating Rainbow Chip EM Pulse Gun Light Assault Rifle Datajack Mining Laser Multitool Peak State ------------ > --- POWER ------------ Light Ion Engine > --- PROPULSION ------- Aluminum Leg Wheel > --- UTILITY ---------- Large Storage Unit Seismic Detector > --- WEAPON ----------- Subdweller Laser Light Assault Rifle > --- INVENTORY -------- Wheel Light Armor Plating Makeshift Light Armor Plating Rainbow Chip EM Pulse Gun Light Assault Rifle Datajack Mining Laser Multitool [Rating: 10] Favorites ----------- Power Ion Engine Engine Ion Engine Propulsion Light Treads Treads Light Treads Leg Aluminum Leg Wheel Wheel Utility Seismic Detector Device Seismic Detector Storage Large Storage Unit Protection Light Armor Plating Weapon Light Assault Rifle Energy Gun Medium Laser Ballistic Gun Light Assault Rifle Special Weapon Mining Laser Build | -11 -10 -10 ------- Run | Yrd Mat Sub Slots Evolved . | . . . Power . | . . . Propulsion . | . . . Utility . | . . . Weapon . | . . . Parts Attached 27 | 7 3 17 Power 4 | 1 . 3 Engine 4 | 1 . 3 Core . | . . . Reactor . | . . . Propulsion 5 | 2 . 3 Treads 3 | 2 . 1 Leg 1 | . . 1 Wheel 1 | . . 1 Hover . | . . . Flight . | . . . Utility 5 | 2 1 2 Device 2 | 1 . 1 Storage 2 | 1 1 . Processor . | . . . Hackware . | . . . Protection 1 | . . 1 Artifact . | . . . Weapon 13 | 2 2 9 Energy Gun 3 | 1 1 1 Energy Cannon . | . . . Ballistic Gun 6 | 1 . 5 Ballistic Cannon . | . . . Launcher . | . . . Special Weapon 4 | . 1 3 Impact Weapon . | . . . Slashing Weapon . | . . . Piercing Weapon . | . . . Special Melee Weapon . | . . . Unidentified Prototypes . | . . . Parts Lost 7 | . . 7 Power 3 | . . 3 Propulsion 3 | . . 3 Utility . | . . . Weapon 1 | . . 1 Highest Loss Streak 2 | . . 2 To Critical Strikes 1 | . . 1 Average Slot Usage (%) 96 | . 100 95 Engine 13 | . 14 13 Treads 15 | . 28 14 Leg 6 | . . 7 Wheel 2 | . . 3 Device 13 | . 14 13 Storage 14 | . 14 14 Energy Gun 9 | . 14 8 Ballistic Gun 13 | . 3 14 Special Weapon 4 | . 10 4 Peak Build Rating 10 | 7 7 10 Average Rating 7 | 5 7 7 On Entrance 4 | . 7 7 Naked Turns . | . . . Heaviest Build 31 | 14 29 31 Greatest Support 40 | 40 40 40 Greatest Overweight (x) 2 | . . 2 Average Overweight (x) . | . . 1 Largest Inventory Capacity 15 | 8 15 15 Average Capacity 14 | 7 12 15 Most Carried 10 | 8 8 10 Average Carried 7 | 5 7 7 Final Capacity 15 | 8 15 15 Final Carried 9 | 8 8 9 Class Distribution -------------------- 81% | Mutant 18% | Scavenger-Mutant Dominant Class ---------------- Mutant | -10/Materials Mutant | -10/Subcaves Resources | -11 -10 -10 ----------- Run | Yrd Mat Sub Matter Collected 512 | 280 . 232 Remotely . | . . . Salvage Created 487 | 154 . 333 Parts 32 | 12 . 20 Haulers Intercepted . | . . . Recyclers Shooed . | . . . Parts Field Recycled . | . . . Retrieved Matter . | . . . Parts Self-Destructed 8 | . . 8 Prevented . | . . . Kills | -11 -10 -10 ------- Run | Yrd Mat Sub Combat Hostiles Destroyed 10 | . . 10 Guns 10 | . . 10 Classes Destroyed 6 | 2 . 4 Tunneler 4 | 4 . . Recycler 1 | 1 . . Swarmer 5 | . . 5 Sentry 1 | . . 1 Artisan 1 | . . 1 Subdweller 4 | . . 4 Best Kill Streak 3 | 3 . 3 Combat Bots Only 3 | . . 3 Max Kills in Single Turn 1 | 1 . 1 Gunslinging . | . . . Exploded . | . . . Melee . | . . . Uniques/NPCs Destroyed . | . . . Combat | -11 -10 -10 -------- Run | Yrd Mat Sub Hostile Shots Fired 73 | . . 73 Missed 14 | . . 14 Damage Taken 1155 | . . 1155 Core 264 | . . 264 Absorbed by Shields . | . . . Core Remaining (%) 100 | 100 . . Volleys Fired 108 | 10 25 73 Largest 2 | 2 1 2 Hottest 100 | 70 100 100 Shots Fired 166 | 20 25 121 Gun 119 | 20 . 99 Cannon . | . . . Launcher . | . . . Special 47 | . 25 22 Kinetic 70 | 10 . 60 Thermal 96 | 10 25 61 Explosive . | . . . Electromagnetic . | . . . Robot Hit Streak 18 | 6 . 18 Robot Miss Streak 2 | 2 . 2 Penetration Max . | . . . Secondary Targets 1 | . . 1 Max Gunslinging Chain 1 | . . 1 Shots Hit Robots 95 | 12 . 83 Core Hits 31 | 7 . 24 Critical Kills . | . . . Critical Parts Destroyed . | . . . Critical Strikes 6 | 1 . 5 Burn 6 | 1 . 5 Melee Attacks . | . . . Impact . | . . . Slashing . | . . . Piercing . | . . . Sneak Attacks . | . . . Combat Hostiles . | . . . Follow-up Attacks . | . . . Damage Inflicted 950 | 116 . 834 Guns 950 | 116 . 834 Cannons . | . . . Explosions . | . . . Melee . | . . . Ramming . | . . . Kinetic 428 | 43 . 385 Thermal 522 | 73 . 449 Explosive . | . . . Electromagnetic . | . . . Impact . | . . . Slashing . | . . . Piercing . | . . . Highest Corruption . | . . . Average Corruption . | . . . Corruption Purged . | . . . Corruption Blocked . | . . . Overload Shots . | . . . Overflow Damage . | . . . Projectiles . | . . . Explosions . | . . . Melee . | . . . Knockbacks . | . . . Impact . | . . . Kinetic . | . . . Secondary . | . . . Self-Inflicted Damage . | . . . Shots . | . . . Rammed . | . . . Targets Rammed . | . . . Kicked . | . . . Crushed . | . . . Highest Temperature 234 | 70 100 234 Average Temperature 31 | 24 28 74 Received Heat Transfer 553 | . . 553 Siege Activations . | . . . Robots Corrupted . | . . . Combat Hostiles . | . . . Parts Fried . | . . . Impact Corruptions . | . . . Robots Melted . | . . . Combat Hostiles . | . . . Parts Melted 4 | 2 . 2 Heat Transferred 1839 | 296 . 1543 Parts Sabotaged . | . . . Parts Stolen . | . . . Parts Stripped . | . . . Power Chain Reactions . | . . . Alert | -11 -10 -10 ------- Run | Yrd Mat Sub Peak Influence 48 | 25 48 . Initial 16 | . 16 . Average 25 | 10 34 . Maximum Alert Level . | . . . Low Security (%) 100 | 100 100 . Level 1 . | . . . Level 2 . | . . . Level 3 . | . . . Level 4 . | . . . Level 5 . | . . . High Security . | . . . Max Security . | . . . Squads Dispatched . | . . . Investigation . | . . . Extermination . | . . . Reinforcement . | . . . Assault . | . . . Garrison . | . . . Intercept . | . . . Searches Triggered . | . . . Construction Impeded . | . . . Haulers Reinforced . | . . . Active Scanning Responses . | . . . Cargo Convoy Interrupts . | . . . Stealth | -11 -10 -10 --------- Run | Yrd Mat Sub Distress Signals 1 | . 1 . Communications Jammed . | . . . Distress Signals . | . . . Times Spotted 13 | . 1 12 Peak Tracking Total 3 | . 3 3 Tactical Retreats 2 | . 1 1 Traps | -11 -10 -10 ------- Run | Yrd Mat Sub Traps Triggered 2 | . . 2 Indirectly . | . . . Trap Hack Attempts . | . . . Triggered . | . . . Disarmed . | . . . Reprogrammed . | . . . Reused . | . . . Traps Extracted . | . . . Installed . | . . . Triggered . | . . . Machines | -11 -10 -10 ---------- Run | Yrd Mat Sub Machines Disabled 1 | . . 1 Max in Single Turn 1 | . . 1 Machines Repaired . | . . . Machines Dismantled . | . . . Machines Sabotaged . | . . . Overloaded Fab Kills . | . . . Hacking | -11 -10 -10 --------- Run | Yrd Mat Sub Machines Accessed 1 | . . 1 Terminals . | . . . Fabricators . | . . . Repair Stations . | . . . Recycling Units . | . . . Scanalyzers . | . . . Garrison Access . | . . . Total Hacks 9 | . . 9 Successful 9 | . . 9 Failed . | . . . Catastrophic . | . . . Database Lockouts . | . . . Manual . | . . . Terminals . | . . . Fabricators . | . . . Repair Stations . | . . . Recycling Units . | . . . Scanalyzers . | . . . Garrison Access . | . . . Terminal Hacks 9 | . . 9 Record 8 | . . 8 Derelict Proto ID Bank 1 | . . 1 Fabricator Hacks . | . . . Repair Station Hacks . | . . . Recycling Unit Hacks . | . . . Scanalyzer . | . . . Garrison Access Hacks . | . . . Unauthorized Hacks . | . . . Terminals . | . . . Fabricators . | . . . Repair Stations . | . . . Recycling Units . | . . . Scanalyzers . | . . . Garrison Access . | . . . Data Cores Recovered . | . . . Used . | . . . Hacking Detections . | . . . Full Trace Events . | . . . Feedback Events . | . . . Feedback Blocked . | . . . Robot Schematics Acquired . | . . . Robots Built . | . . . Authchips . | . . . Time . | . . . Total Robot Build Rating . | . . . Part Schematics Acquired . | . . . Parts Built . | . . . Authchips . | . . . Time . | . . . Total Part Build Rating . | . . . Parts Repaired . | . . . Time . | . . . Parts Recycled . | . . . Recycled Matter . | . . . Retrieved Matter . | . . . Retrieved Components . | . . . Parts Scanalyzed . | . . . Part Schematics Acquired . | . . . Parts Damaged . | . . . Bothacking | -11 -10 -10 ------------ Run | Yrd Mat Sub Used RIF Installer . | . . . Robots Hacked . | . . . Non-combat . | . . . Combat . | . . . Robot Hacks Applied . | . . . Relay Couplers Released . | . . . Fabnet Peak Effective % . | . . . Robots Rewired . | . . . Allies Hacked . | . . . Hacks Repelled . | . . . Allies | -11 -10 -10 -------- Run | Yrd Mat Sub Total Allies . | . . . Largest Group . | . . . Highest-Rated Group . | . . . Highest-Rated Ally . | . . . Total Orders . | . . . Ally Attacks . | . . . Total Damage . | . . . Kills . | . . . Allies Corrupted . | . . . Allies Melted . | . . . Intel | -11 -10 -10 ------- Run | Yrd Mat Sub Robot Analysis Total . | . . . Derelict Logs Recovered 2 | . . 2 Drone Launches . | . . . Drone Recoveries . | . . . Exploration | -11 -10 -10 ------------- Run | Yrd Mat Sub Turns Passed 2959 | 163 272 2524 Spaces Moved 1134 | 75 97 962 Core 3 | 3 . . Treads 583 | 72 97 414 Legs 218 | . . 218 Wheels 330 | . . 330 Hover . | . . . Flight . | . . . Fastest Speed 50 | 50 160 110 Average Speed 166 | 155 160 167 Slowest Speed 260 | 160 160 260 Overloaded Moves . | . . . Propulsion Burnouts . | . . . Robots Hopped . | . . . Cave-ins Triggered . | . . . Exploration Rate (%) 21 | 5 19 40 Regions Visited 2 Branch Regions 1 Pre-discovered Areas . | . . . Known Exits Taken . | . . . Unknown Exits Taken 2 | 1 1 . Scrap Searched 1 | . . 1 Spaces Dug 3 | . 3 . Terrain Destroyed 6 | . 6 . Melee . | . . . Projectile 6 | . 6 . AOE . | . . . Terrain Rammed . | . . . Walls Destroyed . | . . . Machines Disabled . | . . . Actions | -11 -10 -10 --------- Run | Yrd Mat Sub Total 1952 | 100 139 1713 Wait 664 | . 10 654 Move 1132 | 74 96 962 Hop . | . . . Pick Up 17 | 9 2 6 Fast Attach 8 | 6 . 2 Attach 7 | 1 . 6 Detach 1 | . . 1 Swap 12 | . 3 9 Drop 3 | . 3 . Fire 108 | 10 25 73 Melee . | . . . Ram . | . . . Kick . | . . . Crush . | . . . Escape Stasis . | . . . Rewire . | . . . Trap . | . . . Miscellaneous . | . . . Route ------- -11/Scrapyard -10/Materials -10/Subcaves History --------- Turn | Location | Event 12 | -11/Scrapyard | Discovered new exit (range 15) 164 | -11/Scrapyard | Entered Materials 305 | -10/Materials | Build established: Mutant 430 | -10/Materials | Discovered new exit (range 2) 436 | -10/Materials | Entered Subcaves 457 | -10/Subcaves | Learned 2 Materials zone layouts 1260 | -10/Subcaves | A swath of the cavern ceiling suddenly collapsed 1692 | -10/Subcaves | Core integrity fell below 50% 1803 | -10/Subcaves | Core integrity fell below 20% 2278 | -10/Subcaves | Build established: Scavenger-Mutant 2514 | -10/Subcaves | Visited 4L-MR0's lab 2535 | -10/Subcaves | Found Rainbow Chip 2726 | -10/Subcaves | A swath of the cavern ceiling suddenly collapsed 2798 | -10/Subcaves | Build established: Mutant 2960 | -10/Subcaves | Destroyed by I3-52D(R) with Subdweller Machine Gun Last Messages --------------- 02529_ Testing Chamber breached. 02535_ Acquired Rainbow Chip. 02561_ 4L-MR0 cries out in pain. 02561_ 4L-MR0 destroyed. 02563_ Acquired 12 matter. 02566_ Acquired Multitool. 02568_ Subatomizers dissect the Lgt. Ion Engine. 02568_ Acquired Lgt. Ion Engine. 02653_ Acquired 10 matter. 02694_ Searching scrap... 02694_ Found Mak. Light Armor Plating. 02694_ Found Sub. Laser. 02694_ Found 31 Matter. 02696_ Acquired Mak. Light Armor Plating. 02699_ Acquired Sub. Laser. 02702_ Acquired 10 matter. 02715_ Acquired derelict log, extracted data. Data stored: Storage entrances (x1). A swath of the cavern ceiling suddenly collapses. 02952_ I3-52D(R): "ECOKILL!" Map ----- +----------------------------------------------------+ | ???????????????????????????????????### #### | | ?????????????????????????????????????# ##??## | | ?????????????????????????????????????## ##???## | | ??????????????????????????????????????######?#### | | ?????????????????????????????????????????????# # # | | ????????????????????????????????????????????### ## | | ????????????????????????????????????????????# ##? | | ???????????????????????????????????????????## ##?? | | ??????????????????????????????????????????## # ##? | | ??????????????????????????????????????????# ###"#? | | ????????????????????????????????????????? #### #? | | ???????????????????????????????????##???######%##? | | ???????????????????????????????????# ?##### ##? | | ???????????????????????????????????# ## # # # #? | | ?????????????????????????????????#### # ### # | | ????????????????????????????????## # ##??## | | ???????????????????????????????## # #????# | | ??????????????????????????????## ### ######????? | | ??????????????????????????????# ##?# #????????? | | ??????????????????????????????# ##?? #???????? | | ????????????????????????????### #??# #??????? | | ???????????????????????????## ##??# #?????? | | ???????????????????###????## #???# #????? | | ?????????????????###"####### ##??## #????? | | ?????????????????# #;#;#;;R;; ##???## #????? | | ????????????????##" #;; ;@ ; ###???# ????? | | ????????????????#"#"##;#### #??? ###???? | | ????????????????#""#""##### #### #?? #?????? | | ?????? ????????###"#"### ##???# ?????? | | ???????" ??????#"""#""### ####?? ??????? | | ??????"" ????#####"#"### ##?? ##???????? | | ???????? ??????#"###?## #??#####????????? | | ??????????? ???##" #??## #???????????????? | | ??????????????# ## "" #???# ####????????????? | | ???????????????# #??## % "" #????????????? | | ???????????????#"""""" ## ""#????????????? | | ??????????????# """"" #????????????? | | ?????????????# """"" % ####????????????? | | ???????????? """"" #???????????????? | | ???????????"" """" ## #???????????????? | | ???????????""## ??" #### " #???????????????? | | ?????????????????? ?????# "" ???????????????? | | ????????????????????????# ### "#???????????????? | | ????????????????????????#####?#" "???????????????? | | ??????????????????????????????#"" ???????????????? | | ???????????????????????????????? ???????????????? | | ????????????????????????????????? ???????????????? | | ?????????????????????????????????????????????????? | | ?????????????????????????????????????????????????? | | ?????????????????????????????????????????????????? | +----------------------------------------------------+ Best States ------------- Heat Dissipation 25 Energy Generation 15 Energy Capacity 250 Matter Stores 300 Matter Capacity 300 Sight Range 16 Terrain Scan Density 10 Armor Coverage 150 Evasion (%) 40 Recoil Reduction 2 Item Schematics ----------------- None Robot Schematics ------------------ None Fabricated ------------ Nothing Alien Tech Used ----------------- None Achievements -------------- None Challenges ------------ None Game ------ Seed WeaponReactionComputer Manual? 0 Play Time 00:13:34 Cumulative 150.1 hours Start 2024.08.07 @ 16:07:49 End 2024.08.07 @ 16:19:05 Sessions 1 Manual Loads 0 Difficulty Rogue Special Mode None Game No. 84 Rogue 84 Adventurer 0 Explorer 0 Win Type - Total 5 Types 2/0/1/1/0/0/0/1/0 Lore% 54 Gallery% 70 Achievement% 64 Wizard Run 0 Options --------- Layout 0 ASCII 0 Keyboard 1 Movement Numpad Keybinds 0 Fullscreen 1 Font 18/SmallcapsGlow Map View 76x50 Zoom Use 0% Tactical HUD 1 Map Filters NONE Filters NONE Steam 1 RUN: 0a412632-cb13-43c7-9618-8be3ff919fea